[Event "Mitropa Cup Women 2022"]
[Site "Corte"]
[Date "2022.05.06"]
[Round "7.7"]
[White "Mihok-Juhasz, Barbara"]
[Black "Hund, Sarah"]
[Result "1-0"]
[ECO "C77"]
[WhiteElo "2202"]
[BlackElo "2086"]
[Annotator "TA"]
[PlyCount "109"]
[EventDate "2022.04.30"]
[EventType "team-tourn"]
[EventCountry "FRA"]
[SourceTitle "playchess.com"]
[Source "ChessBase"]
[SourceQuality "1"]
[WhiteTeam "Hungary"]
[BlackTeam "Switzerland"]
[WhiteTeamCountry "HUN"]
[BlackTeamCountry "SUI"]
[TimeControl "40/5400+30:1800+30"]

{[%evp 19,109,0,0,0,5,6,21,15,8,5,32,20,33,0,12,4,16,8,0,0,0,-3,16,11,39,36,40,21,35,28,43,45,49,37,64,66,70,64,70,63,65,57,61,39,57,57,57,57,194,186,193,192,229,110,189,187,416,204,409,410,422,388,418,422,456,453,572,525,29942,29941,29943,29947,29945,29948,29947,29945,29942,12838,29941,29944,6631,10449,29965,4133,29980,29981,29983,29984,29984,29985,29985,29986]} 1. e4 {[%emt 0:00:03]} e5 {[%emt 0:00:09]} 2. Nf3 {[%emt 0:00:05]} Nc6 {[%emt 0:00:07]} 3. Bb5 {[%emt 0:00:08]} a6 {[%emt 0:00:15]} 4. Ba4 {[%emt 0:00:04]} Nf6 {[%emt 0:00:15]} 5. d4 {[%emt 0:00:07]} exd4 {[%emt 0:00:59]} 6. O-O {[%emt 0:00:09]} Be7 {[%emt 0:01:14]} 7. e5 {[%emt 0:00:06]} Ne4 {[%emt 0:01:42]} 8. Nxd4 {[%emt 0:00:06]} O-O {[%emt 0:01:37]} 9. Nf5 {[%emt 0:00:18]} d5 {[%emt 0:02:01]} 10. Nxe7+ {[%emt 0:00:35]} Nxe7 {[%emt 0:00:31][%cal Bc6e7,Be7g6,Bg6e5][%mdl 32]} 11. c3 {[%emt 0:00:06] C84: Closed Ruy Lopez: Unusual White 6th moves.} Ng6 {[%emt 0:07:28]} 12. f3 {[%emt 0:02:45]} Nc5 {[%emt 0:02:35][%cal Be4c5,Bc5d7,Bd7f6][%mdl 32]} 13. Bc2 {[%emt 0:00:05] Against Bf5. The position is equal.} Nxe5 {[%emt 0:01:25]} 14. b4 {[%emt 0:02:07]} Ncd7 {[%emt 0:05:44]} 15. Qxd5 {[%emt 0:17:14] [#]} Qe7 $146 {[%emt 0:06:09]} ({Predecessor:} 15... Ng6 16. Rd1 Qe7 17. Na3 Nf6 18. Qd3 Be6 19. Bg5 Rfd8 20. Qe3 b6 21. Bxf6 Qxf6 {½-½ (45) Kresovic,V-Kargoll,B Baden 1991}) 16. Bf4 {[%emt 0:05:17]} Re8 {[%emt 0:08:19]} 17. Nd2 {[%emt 0:13:50] aiming for Rae1.} Nf6 {[%emt 0:06:14]} 18. Qxe5 {[%emt 0:05:14]} Qxe5 {[%emt 0:00:10]} 19. Bxe5 {[%emt 0:00:02]} Rxe5 {[%emt 0:00:08]} 20. Ne4 {[%emt 0:04:43]} Be6 {[%emt 0:11:55]} 21. Rfe1 {[%emt 0:17:55]} Bd5 {[%emt 0:05:40]} 22. Nxf6+ {[%emt 0:02:51]} gxf6 {[%emt 0:00:07]} 23. a3 {[%emt 0:01:06]} Kg7 {[%emt 0:04:37]} 24. f4 {[%emt 0:03:51]} Ree8 {[%emt 0:01:23]} 25. Kf2 {[%emt 0:01:32]} Rad8 {[%emt 0:02:39]} 26. g3 {[%emt 0:07:40]} h6 {[%emt 0:06:19]} 27. Rxe8 {[%emt 0:01:13]} Rxe8 $14 {[%emt 0:00:06][%mdl 4096] Endgame KRB-KRB} 28. Re1 {[%emt 0:01:07]} Re6 {[%emt 0:02:51]} 29. Bf5 {[%emt 0:02:50]} Rc6 {[%emt 0:02:26]} 30. Re3 {[%emt 0:00:12] White is more active.} b6 {[%emt 0:01:48]} 31. Ke1 {[%emt 0:03:10]} a5 {[%emt 0:03:05]} 32. Kd2 {[%emt 0:00:25]} axb4 {[%emt 0:03:06]} 33. cxb4 {[%emt 0:00:13]} Bc4 {[%emt 0:01:45] [#]} (33... Rd6 $14 34. Kc3 b5) 34. a4 $1 $18 {[%emt 0:01:58][%cal Ba3a4,Ba4a5,Ba5b6][%mdl 32]} Rd6+ {[%emt 0:02:30]} 35. Kc3 {[%emt 0:00:06]} Be6 {[%emt 0:01:32]} 36. Bd3 {[%emt 0:02:57]} (36. Bxe6 $18 {and the rest is easy.} fxe6 37. Kc4) 36... Rc6+ {[%emt 0:01:40]} (36... c5 $16) 37. Kb2 {[%emt 0:00:47]} Bc4 $2 {[%emt 0:07:01]} (37... Rd6 {was necessary.} 38. a5 bxa5) 38. Bc2 {[%emt 0:02:20]} (38. Bxc4 $142 Rxc4 39. Rb3) 38... b5 $2 {[%emt 0:01:23]} (38... Kf8 39. Rc3 Bd5) 39. a5 {[%emt 0:00:10]} Ra6 {[%emt 0:00:16]} 40. Re7 {[%emt 0:00:19]} c5 {[%emt 0:00:34]} 41. Kc3 {[%emt 0:30:05]} Kf8 {[%emt 0:03:41]} 42. Rb7 {[%emt 0:00:00]} Ke8 {[%emt 0:02:44]} 43. Rb6 {[%emt 0:00:00]} Rxb6 {[%emt 0:03:07]} 44. axb6 {[%emt 0:00:00]} cxb4+ {[%emt 0:00:07]} 45. Kxb4 {[%emt 0:00:00] KB-KB} Kd7 {[%emt 0:00:24]} 46. Kc5 {[%emt 0:00:00]} Kc8 {[%emt 0:01:03]} 47. Be4 {[%emt 0:00:00]} Be2 {[%emt 0:06:11]} 48. Bd5 {[%emt 0:00:00]} (48. Bc6 $142 b4 49. Bd5 Kd7 50. Bc6+ Kc8 51. Kxb4 Bd1 52. Bd5 Kd7 53. Kc5) 48... Bf1 {[%emt 0:01:51]} 49. Bxf7 {[%emt 0:00:00]} Bg2 {[%emt 0:00:44]} 50. Kxb5 {[%emt 0:00:00] Kc5 would kill now.} Kd7 {[%emt 0:00:18]} 51. Kc5 {[%emt 0:00:00]} (51. Ka6 $142 Ke7 {[#]} 52. b7 $1 Bxb7+ 53. Kxb7 Kd6 54. Bg6 Kd7 55. Kb6 Kc8 56. Bf5+ Kd8 57. h4) 51... Bb7 {[%emt 0:01:13]} 52. Bd5 {[%emt 0:00:00] White mates.} Bc8 {[%emt 0:00:16]} 53. b7 {[%emt 0:00:00]} Bxb7 {[%emt 0:00:04]} 54. Bxb7 {[%emt 0:00:00]} Ke6 {[%emt 0:00:07]} 55. Bc8+ {[%emt 0:00:00] Weighted Error Value: White=0.13 (very precise) /Black=0.83} 1-0

[Event "Mitropa Cup Women 2022"]
[Site "Corte"]
[Date "2022.05.06"]
[Round "7.7"]
[White "Sikorova, Olga"]
[Black "Gueci, Tea"]
[Result "1/2-1/2"]
[ECO "A13"]
[WhiteElo "2173"]
[BlackElo "2248"]
[Annotator "TA"]
[PlyCount "57"]
[EventDate "2022.04.30"]
[EventType "team-tourn"]
[EventCountry "FRA"]
[SourceTitle "playchess.com"]
[Source "ChessBase"]
[SourceQuality "1"]
[WhiteTeam "Czech Republic"]
[BlackTeam "Italy"]
[WhiteTeamCountry "CZE"]
[BlackTeamCountry "ITA"]
[TimeControl "40/5400+30:1800+30"]

{[%evp 16,57,-16,-15,0,-25,-16,-51,-50,-83,-77,-70,-78,-61,21,16,19,17,42,42,75,11,10,0,6,2,18,27,27,0,0,0,0,0,0,0,0,0,0,0,0,0,0,0]} 1. c4 {[%emt 0:00:04]} e6 {[%emt 0:00:04]} 2. Nf3 {[%emt 0:00:25]} d5 {[%emt 0:00:04]} 3. b3 {[%emt 0:00:07]} d4 {[%emt 0:00:12]} 4. e3 {[%emt 0:01:39]} c5 {[%emt 0:00:11]} 5. exd4 {[%emt 0:02:31]} cxd4 {[%emt 0:00:08]} 6. g3 {[%emt 0:00:09]} Nc6 {[%emt 0:00:12]} 7. Bg2 {[%emt 0:00:20]} Nf6 {[%emt 0:00:10]} 8. O-O {[%emt 0:00:14]} Bd6 {[%emt 0:00:46]} 9. d3 {[%emt 0:00:49]} h6 {[%emt 0:00:17] A13: English Opening: 1...e6.} 10. Bb2 {[%emt 0:05:29]} e5 {[%emt 0:05:34]} 11. Re1 {[%emt 0:02:47][%cal Of3e5]} O-O $1 {[%emt 0:03:18] Black is slightly better.} 12. c5 {[%emt 0:01:46]} Bxc5 {[%emt 0:14:57]} 13. Nxe5 {[%emt 0:01:23]} Nxe5 {[%emt 0:14:37]} 14. Rxe5 {[%emt 0:00:05] [#]} Bb6 $146 {[%emt 0:01:05]} ({Black should play} 14... Bd6 $15 15. Re2 Bg4) ({Predecessor:} 14... Bd6 15. Re1 Bg4 16. Qd2 Qb6 17. Rc1 Rfe8 18. Bf1 Nd5 19. Rc4 Bc5 20. Qc1 Rac8 {1-0 (69) Lai,H (2317)-Schoppen,C (2202) Rotterdam 2015}) 15. Nd2 {[%emt 0:04:16]} Bg4 {[%emt 0:05:07]} 16. Bf3 {[%emt 0:03:00]} Bxf3 {[%emt 0:06:14]} 17. Qxf3 {[%emt 0:00:49]} Rc8 {[%emt 0:06:02]} 18. Ne4 {[%emt 0:06:45] White is more active.} (18. Qxb7 Ng4 19. Re2 Rc2 $11) ({White should try} 18. Ba3 $16 {Hoping for Be7.} Re8 19. Rae1) 18... Nxe4 $11 {[%emt 0:15:57]} 19. dxe4 Qc7 {[%emt 0:08:03]} 20. Rd5 {[%emt 0:14:11]} Rfd8 {[%emt 0:00:46] [#] Strongly threatening ...Qc2.} 21. Rc1 {[%emt 0:05:18] Against Qc2} Qb8 {[%emt 0:00:13]} 22. Rxc8 {[%emt 0:18:41]} Qxc8 {The position is equal.} 23. Rxd8+ {[%emt 0:05:35]} Qxd8 {[%emt 0:00:40][%mdl 4096] Endgame KQB-KQB} 24. Qd3 {[%emt 0:00:22]} Qd7 {[%emt 0:03:08]} 25. Kg2 {[%emt 0:00:52]} Qc6 {[%emt 0:01:06]} 26. f3 {[%emt 0:10:04]} ({But not} 26. Bxd4 $2 Qd7 27. Qd1 Bxd4 $19) 26... h5 {[%emt 0:01:01]} 27. a4 {[%emt 0:01:05]} ({Not} 27. Bxd4 $2 Qd7 28. h3 Bxd4 $19) 27... a6 {[%emt 0:01:03]} 28. h4 {[%emt 0:07:23]} ({Wrong is} 28. Bxd4 $2 Qd7 29. f4 Bxd4 $19) 28... Qd6 {[%emt 0:02:41]} 29. Bc1 {Weighted Error Value: White=0.15 (very precise) /Black=0.13 (very precise)} 1/2-1/2

[Event "Mitropa Cup Women 2022"]
[Site "Corte"]
[Date "2022.05.06"]
[Round "7.8"]
[White "Gabbani, Sara"]
[Black "Koubova, Anna Marie"]
[Result "0-1"]
[ECO "B13"]
[WhiteElo "1856"]
[BlackElo "2115"]
[Annotator "TA"]
[PlyCount "64"]
[EventDate "2022.04.30"]
[EventType "team-tourn"]
[EventCountry "FRA"]
[SourceTitle "playchess.com"]
[Source "ChessBase"]
[SourceQuality "1"]
[WhiteTeam "Italy"]
[BlackTeam "Czech Republic"]
[WhiteTeamCountry "ITA"]
[BlackTeamCountry "CZE"]
[TimeControl "40/5400+30:1800+30"]

{[%evp 10,64,27,22,25,22,28,19,39,41,51,29,36,19,35,14,8,-14,-10,-20,33,17,10,0,0,0,3,-219,-206,-196,-216,-312,-323,-324,-313,-664,-654,-597,-368,-493,-402,-376,-262,-356,-345,-400,-373,-417,-347,-875,-864,-854,-850,-1092,-1085,-2115,-1728]} 1. e4 {[%emt 0:00:03]} c6 {[%emt 0:00:15]} 2. d4 {[%emt 0:00:05]} d5 {[%emt 0:00:14]} 3. exd5 {[%emt 0:00:13]} cxd5 {[%emt 0:00:12]} 4. c3 {[%emt 0:00:45]} Nc6 {[%emt 0:06:54]} 5. Bd3 {[%emt 0:00:52]} Qc7 {[%emt 0:00:48]} 6. h3 {[%emt 0:01:45]} e6 {[%emt 0:00:23] B13: Caro-Kann: Exchange Variation and Panov-Botvinnik Attack.} 7. Nf3 {[%emt 0:02:30]} Bd6 {[%emt 0:01:19]} 8. O-O {[%emt 0:04:10]} Nge7 {[%emt 0:01:42] The position is equal.} 9. Re1 {[%emt 0:03:13]} Ng6 {[%emt 0:02:32] 9...0-0 gains popularity.} 10. Nbd2 {[%emt 0:07:07]} O-O {[%emt 0:02:06]} 11. Nf1 {[%emt 0:07:36]} Bd7 {[%emt 0:03:22]} 12. Ng5 {[%emt 0:07:12] [#] Qh5 is the strong threat.} Nce7 {[%emt 0:09:20] [#]} 13. Qh5 $146 {[%emt 0:06:39][%csl Gg5][%cal Rh5h7]} ({Predecessor:} 13. Ne3 h6 14. Nf3 Rae8 15. Ng4 f6 16. Qc2 Nf5 17. c4 dxc4 18. Qxc4 Qxc4 19. Bxc4 {½-½ (45) Das,S (2424)-Ghosh,D (2550) New Delhi 2020}) 13... h6 {[%emt 0:01:28]} 14. Nf3 {[%emt 0:04:43]} b5 {[%emt 0:07:58]} (14... f5 $11) 15. Ne5 $14 {[%emt 0:08:47]} Be8 {[%emt 0:07:43]} 16. Bd2 {[%emt 0:07:07]} Nxe5 {[%emt 0:04:36]} 17. dxe5 {[%emt 0:00:10]} Bc5 {[%emt 0:00:27]} 18. Bxh6 $2 {[%emt 0:06:35] [#] This move loses the game for White.} f5 $1 $19 {[%emt 0:08:19]} 19. Qg5 {[%csl Gh6][%cal Rg5g7]} Ng6 {[%emt 0:04:07][%cal Be7g6,Bg6e5,Be5d3][%mdl 32]} 20. Ng3 {[%emt 0:11:44]} (20. Bxb5 $142 gxh6 21. Qxh6) 20... gxh6 {[%emt 0:05:25]} 21. Qxh6 {[%emt 0:00:18]} Qg7 {[%emt 0:00:28]} 22. Qg5 {[%emt 0:02:28]} (22. Qxg7+ Kxg7 23. Rad1) 22... Be7 {[%emt 0:02:47]} 23. Qd2 {[%emt 0:01:18]} Nxe5 {[%emt 0:00:55]} 24. Qe2 {[%emt 0:04:50]} Nxd3 {[%emt 0:02:13]} 25. Qxd3 {[%emt 0:01:01]} Qg6 {[%emt 0:05:20]} 26. Qf3 {[%emt 0:02:41]} Rc8 {[%emt 0:02:49]} 27. Rad1 {[%emt 0:01:17]} Bc6 {[%emt 0:06:35]} 28. Qe2 {[%emt 0:01:00]} f4 {[%emt 0:02:22][%cal Bf5f4,Bf4g3,Bg3f2][%mdl 32]} 29. Qxe6+ $2 {[%emt 0:02:53]} (29. Nf1) 29... Qxe6 {[%emt 0:00:23] Black is clearly winning.} 30. Rxe6 {[%emt 0:00:06]} fxg3 {[%emt 0:00:04]} 31. Rxe7 {[%emt 0:00:24]} gxf2+ {[%emt 0:00:07]} 32. Kf1 {[%emt 0:01:18]} b4 {[%emt 0:00:44] Weighted Error Value: White=0.97/Black=0.24 (precise)} 0-1

[Event "Mitropa Cup Women 2022"]
[Site "Corte"]
[Date "2022.05.06"]
[Round "7.8"]
[White "Zhuang, Yongzhe"]
[Black "Karacsonyi, Kata"]
[Result "0-1"]
[ECO "B22"]
[WhiteElo "1701"]
[BlackElo "2130"]
[Annotator "TA"]
[PlyCount "46"]
[EventDate "2022.04.30"]
[EventType "team-tourn"]
[EventCountry "FRA"]
[SourceTitle "playchess.com"]
[Source "ChessBase"]
[SourceQuality "1"]
[WhiteTeam "Switzerland"]
[BlackTeam "Hungary"]
[WhiteTeamCountry "SUI"]
[BlackTeamCountry "HUN"]
[TimeControl "40/5400+30:1800+30"]

{[%evp 23,46,4,5,-4,15,-19,-15,-18,-17,-49,-19,-82,-81,-89,-79,-98,-106,-100,-100,-603,-593,-656,-652,-639,-621]} 1. e4 {[%emt 0:00:09]} c5 {[%emt 0:00:10]} 2. c3 {[%emt 0:00:08]} d5 {[%emt 0:00:12]} 3. exd5 {[%emt 0:00:13]} Qxd5 {[%emt 0:00:08]} 4. d4 {[%emt 0:00:13]} g6 {[%emt 0:00:36]} 5. Nf3 {[%emt 0:00:22]} Bg7 {[%emt 0:00:15]} 6. Be3 {[%emt 0:00:18]} cxd4 {[%emt 0:00:33]} 7. cxd4 {[%emt 0:00:25]} Nf6 {[%emt 0:01:04]} 8. Nc3 {[%emt 0:00:29]} Qa5 {[%emt 0:00:13]} 9. Bc4 {[%emt 0:00:34]} O-O {[%emt 0:01:31]} 10. O-O {[%emt 0:00:24]} Bg4 {[%emt 0:00:59]} 11. h3 {[%emt 0:00:50]} Bxf3 {[%emt 0:00:10]} 12. Qxf3 {[%emt 0:00:15]} Nc6 {[%emt 0:00:35]} 13. Rad1 {[%emt 0:00:56] B22: Sicilian: 2 c3.} Rad8 {[%emt 0:00:51]} 14. Rfe1 {[%emt 0:03:03] [#]} e6 $146 {[%emt 0:01:08]} ({Predecessor:} 14... Ne8 15. Bd5 Rc8 16. Bb3 Nd6 17. Ne4 Nxe4 18. Qxe4 e6 19. d5 exd5 20. Bxd5 Bxb2 {1-0 (32) Dischinger,F (2239)-Bus,T Voerendaal 2001}) 15. a3 {[%emt 0:05:17] The position is equal.} Rd7 {[%emt 0:03:20]} 16. Bb5 {[%emt 0:12:42]} Rc8 {[%emt 0:07:34][%cal Bf8c8,Bc8c6,Bc6c5,Bc5d5][%mdl 32]} 17. Re2 {[%emt 0:10:46]} (17. Ba4 $11 {remains equal.}) 17... Nd5 $17 {[%emt 0:16:39]} 18. Bxc6 {[%emt 0:05:37]} Rxc6 {[%emt 0:00:40]} 19. Ne4 {[%emt 0:01:53]} Nxe3 {[%emt 0:06:51]} 20. fxe3 {[%emt 0:01:46] [#]} e5 $1 {[%emt 0:08:41][%cal Re5d4]} 21. Nc5 $2 {[%emt 0:10:37][%mdl 8192]} (21. Red2 $17) 21... Rxc5 $19 {[%emt 0:06:49] Black is clearly winning.} 22. b4 {[%emt 0:10:15]} Qa4 {[%emt 0:00:11]} 23. Rf1 {[%emt 0:00:56]} Rcd5 {[%emt 0:06:21] White got outplayed after the opening.  Weighted Error Value: White=0.91/Black=0.03 (flawless)} 0-1

[Event "Mitropa Cup Women 2022"]
[Site "Corte"]
[Date "2022.05.07"]
[Round "8.1"]
[White "Guichard, Pauline"]
[Black "Movsesian, Julia"]
[Result "1-0"]
[ECO "E20"]
[WhiteElo "2377"]
[BlackElo "2313"]
[Annotator "TA"]
[PlyCount "111"]
[EventDate "2022.04.30"]
[EventType "team-tourn"]
[EventCountry "FRA"]
[SourceTitle "playchess.com"]
[Source "ChessBase"]
[SourceQuality "1"]
[WhiteTeam "France"]
[BlackTeam "Czech Republic"]
[WhiteTeamCountry "FRA"]
[BlackTeamCountry "CZE"]
[TimeControl "40/5400+30:1800+30"]

{[%evp 13,111,0,9,0,0,0,10,6,58,65,87,31,28,35,233,215,232,87,84,83,91,99,103,76,110,86,88,91,90,24,24,17,159,168,170,168,177,156,155,165,151,128,167,152,151,157,150,154,139,157,186,158,187,184,147,63,198,198,318,262,666,651,651,651,629,624,559,559,545,537,507,537,504,468,440,389,458,453,552,550,636,551,837,522,502,488,916,927,895,889,1030,844,759,728,930,616,4666,4602,2005,978]} 1. d4 {[%emt 0:00:03]} Nf6 {[%emt 0:00:10]} 2. c4 {[%emt 0:00:09]} e6 {[%emt 0:00:16]} 3. Nc3 {[%emt 0:00:26]} Bb4 {[%emt 0:00:22]} 4. Bd2 {[%emt 0:00:10]} O-O {[%emt 0:01:18]} 5. Nf3 {[%emt 0:00:30]} d5 {[%emt 0:02:28]} 6. e3 {[%emt 0:00:27]} b6 {[%emt 0:00:06]} 7. cxd5 {[%emt 0:00:21]} exd5 {[%emt 0:00:35]} 8. Bd3 {[%emt 0:00:32] E51: Nimzo-Indian: Rubinstein: 4...0-0 5 Nf3 d5.} Re8 {[%emt 0:02:26]} 9. Ne5 {[%emt 0:01:25]} Bb7 {[%emt 0:12:22]} 10. O-O {[%emt 0:03:36] The position is equal.} Bd6 {[%emt 0:12:22]} (10... c5 $11) 11. f4 $1 $14 {[%emt 0:00:21] [#]} Nbd7 $146 {[%emt 0:09:01]} ({Predecessor:} 11... c5 12. Be1 cxd4 13. exd4 Nc6 14. Bb5 Rc8 15. Bh4 Be7 16. Qa4 Qd6 17. Rae1 Ne4 18. Bxe7 Rxe7 19. Nxe4 dxe4 20. Bxc6 Bxc6 21. Nxc6 Rxc6 {0-1 (40) Esipenko,A (2564)-Le,Q (2737) Riadh 2017}) 12. Qf3 {[%emt 0:03:30]} (12. Be1 $16) 12... Ne4 {[%emt 0:02:08]} 13. Be1 {[%emt 0:24:55][%cal Rc3e4]} (13. Bxe4 dxe4 14. Qh5 (14. Nxe4 Bd5 $17) 14... Qe7 $11) 13... f6 $2 {[%emt 0:03:43]} (13... Ndf6 $14) 14. Nxe4 $18 {[%emt 0:07:43]} Bxe5 {[%emt 0:06:19]} (14... dxe4 $2 15. Bc4+ Re6 16. Bxe6+ $18) 15. Nc3 {[%emt 0:08:36]} (15. dxe5 $6 dxe4 16. Bxe4 Bxe4 17. Qxe4 Qe7 $16) (15. fxe5 $18 {is more deadly.} dxe4 16. Bc4+ (16. Bxe4 Bxe4 17. Qxe4 fxe5 $16) 16... Kh8 17. Qh5) 15... Bd6 $16 {[%emt 0:01:45]} 16. Nxd5 {[%emt 0:00:37]} Kh8 {[%emt 0:03:59][%cal Of6f5] [#]} 17. Qh3 $1 {[%emt 0:01:44][%csl Gd3][%cal Rh3h7]} Nf8 {[%emt 0:00:13]} 18. Nc3 $36 {[%emt 0:00:17][%mdl 2048] White is in control.} c5 {[%emt 0:02:23]} 19. d5 {[%emt 0:03:57] aiming for e4.} c4 {[%emt 0:00:17]} 20. Bxc4 {[%emt 0:07:19] Hoping for e4.} Rxe3 {[%emt 0:00:15]} 21. g3 {[%emt 0:00:41]} ({White should play} 21. Qg4 $16) 21... Rc8 $11 {[%emt 0:04:06]} 22. Bb3 {[%emt 0:10:36]} b5 {[%emt 0:15:09]} (22... Ba6 $1 $11 {keeps the balance.}) 23. Bf2 $16 {[%emt 0:00:56]} (23. Nxb5 $2 Bc5 24. Bf2 Rxb3 $1 {[%mdl 512]} 25. axb3 Qxd5 26. Bxc5 Qxc5+ 27. Rf2 Qxb5 $19) 23... Bxf4 {[%emt 0:01:23]} 24. Qf5 {[%emt 0:06:06]} (24. Nxb5 $2 {[#]} Rxb3 $1 {[%mdl 512]} 25. Qxc8 Rxg3+ $3 {[%mdl 512]} 26. hxg3 Qxc8 $19) 24... Bh6 {[%emt 0:01:12][%cal Oa7a5]} 25. Bxe3 {[%emt 0:06:17]} (25. Nxb5 $2 g6 26. Qxc8 (26. Qh3 $2 Rxb3 27. Nc3 Rbxc3 $19) 26... Bxc8 $19) 25... Bxe3+ {[%emt 0:00:32]} 26. Kg2 {[%emt 0:00:04]} a5 {[%emt 0:00:38]} 27. a3 {[%emt 0:03:09]} (27. Nxb5 a4 28. Rfd1 (28. Bxa4 $2 Bxd5+ 29. Rf3 g6 $19) 28... axb3 29. axb3 Qb6 $19) 27... a4 {[%emt 0:00:59]} 28. Ba2 {[%emt 0:00:25]} Bd4 {[%emt 0:01:32]} 29. Nxb5 {[%emt 0:01:16]} Bxb2 {[%emt 0:00:33]} 30. Rab1 {[%emt 0:00:43]} Be5 {[%emt 0:00:42]} 31. Rfd1 {[%emt 0:00:33]} Rc5 {[%emt 0:00:42] [#]} 32. Nd6 $1 {[%emt 0:03:40][%mdl 512]} Qxd6 {[%emt 0:02:23]} (32... Bxd6 33. Rxb7) 33. Rxb7 Rc3 {[%emt 0:00:07]} 34. Qg4 {[%emt 0:04:21]} ({Better is} 34. Bb1 $16) 34... g6 {[%emt 0:01:17]} (34... Rc2+ $1 $14 35. Kh3 (35. Kh1 f5 $11) 35... f5 36. Qxf5 Rxa2) 35. Bb1 $18 {[%emt 0:00:21]} (35. Qxa4 $6 Bxg3 36. Kh1 (36. hxg3 Qxg3+ 37. Kh1 Qh3+ 38. Kg1 Rg3+ 39. Kf2 Qg2+ 40. Ke1 Re3#) 36... Bxh2 $16) 35... h5 {[%emt 0:03:48]} (35... Re3 {was necessary.} 36. Qxa4 Bxg3) 36. Qe2 {[%emt 0:01:34][%cal Ob1g6] Bxg6! is the strong threat.} (36. Qxa4 Bxg3 37. Qb4 (37. hxg3 Qxg3+ 38. Kh1 Qh3+ 39. Kg1 Rg3+ 40. Kf2 Qh2+ 41. Kf1 Rg1#) 37... Rxa3) 36... Bxg3 $2 {[%emt 0:01:16]} (36... Rc7 37. Rxc7 Qxc7) 37. Qd2 {[%emt 0:00:17] Active counter play!} (37. hxg3 $2 Qxg3+ 38. Kf1 (38. Kh1 $2 Qh3+ 39. Kg1 Rg3+ 40. Kf2 Rg2+ 41. Ke1 Qg3+ 42. Kd2 Qg5+ 43. Kc3 Rxe2 $19) 38... Rf3+ 39. Qxf3 Qxf3+ 40. Ke1 h4 $19) 37... Qf4 {[%emt 0:02:02] Against Qh6+} 38. Qxf4 {[%emt 0:00:04]} (38. hxg3 {leads to mate.} Rxg3+ 39. Kh1 Qf3+ 40. Kh2 Rh3+ 41. Kg1 Rh1#) 38... Bxf4 {[%emt 0:00:04]} 39. d6 {[%emt 0:00:08][%cal Bd5d6,Bd6d7][%mdl 32] Intending d7 and mate.} Rc8 {[%emt 0:00:24]} 40. d7 {[%emt 0:00:04]} Rd8 {[%emt 0:00:03]} 41. Bc2 {[%emt 0:31:05]} Kg7 {[%emt 0:32:07]} 42. Bxa4 {[%emt 0:01:51]} Ne6 {[%emt 0:00:46]} 43. Bc6 {[%emt 0:00:00]} h4 {[%emt 0:00:00]} 44. Bd5 {[%emt 0:00:00]} Nc5 {[%emt 0:00:00]} 45. Rb5 {[%emt 0:00:00] White is clearly winning.} ({Don't play} 45. Rb4 Be5 46. Rc4 (46. Rxh4 Rxd7 47. Rc4 Ne6 $18) 46... Na6 $18) 45... h3+ {[%emt 0:00:00]} 46. Kxh3 {[%emt 0:00:00]} Rh8+ {[%emt 0:00:00]} 47. Kg2 {[%emt 0:00:00]} Rxh2+ {[%emt 0:00:00]} 48. Kg1 {[%emt 0:00:00]} Nxd7 {[%emt 0:00:00]} 49. Rb7 {[%emt 0:00:00]} Rh3 {[%emt 0:00:00]} (49... Kh6 $142 50. Rxd7 Rc2) 50. Rxd7+ {[%emt 0:00:00]} Kh6 {[%emt 0:00:00]} 51. Ra1 {[%emt 0:00:18]} f5 {[%emt 0:00:00]} 52. Kf2 {[%emt 0:02:51]} Kg5 {[%emt 0:00:00]} 53. a4 {[%emt 0:00:48]} Be3+ {[%emt 0:00:00]} 54. Ke2 {[%emt 0:00:46]} f4 {[%emt 0:00:00]} 55. Rh1 {[%emt 0:00:55]} Rg3 {[%emt 0:00:00]} 56. Bf3 {Weighted Error Value: White=0.33/Black=0.46} 1-0

[Event "Mitropa Cup Women 2022"]
[Site "Corte"]
[Date "2022.05.07"]
[Round "8.1"]
[White "Cvitan, Ena"]
[Black "Borosova, Zuzana"]
[Result "1/2-1/2"]
[ECO "D10"]
[WhiteElo "2251"]
[BlackElo "2265"]
[Annotator "TA"]
[PlyCount "33"]
[EventDate "2022.04.30"]
[EventType "team-tourn"]
[EventCountry "FRA"]
[SourceTitle "playchess.com"]
[Source "ChessBase"]
[SourceQuality "1"]
[WhiteTeam "Croatia"]
[BlackTeam "Slovakia"]
[WhiteTeamCountry "CRO"]
[BlackTeamCountry "SVK"]
[TimeControl "40/5400+30:1800+30"]

{[%evp 13,25,15,20,23,23,17,14,12,14,12,14,17,26,41]} 1. d4 {[%emt 0:00:20]} d5 {[%emt 0:00:04]} 2. c4 {[%emt 0:00:10]} c6 {[%emt 0:00:04]} 3. cxd5 {[%emt 0:00:07]} cxd5 {[%emt 0:00:03]} 4. Nc3 {[%emt 0:00:12]} Nf6 {[%emt 0:00:03]} 5. Bf4 {[%emt 0:00:14]} Nc6 {[%emt 0:00:14][%cal Bb8c6,Bc6a5,Ba5c4][%mdl 32]} 6. e3 {[%emt 0:00:17]} Bf5 {[%emt 0:00:27]} 7. Qb3 {[%emt 0:00:18]} Na5 {[%emt 0:00:49]} 8. Qa4+ {[%emt 0:00:09] D10: Slav Defence: 3 cxd5 (without early Nf3) and 3 Nc3.} Bd7 {[%emt 0:00:08]} 9. Qc2 {[%emt 0:00:09]} e6 {[%emt 0:00:56]} 10. Bd3 Be7 11. h3 {[%emt 0:04:08]} Rc8 {[%emt 0:24:50][%cal Of6e4]} 12. Nf3 {[%emt 0:01:29]} Nc4 {[%emt 0:13:36]} 13. O-O {[%emt 0:15:49] [#] Black got outplayed after the opening.  Weighted Error Value: White=0.00 (flawless) /Black=0.01 (flawless)} {Predecessor:} O-O $146 14. Ne5 b5 15. a3 Be8 16. Rfc1 a6 17. Qe2 {½-½ (17) Volkov,S (2592)-Balogh,C (2657) Mamaia 2015} 1/2-1/2